bitfinex/quotes_BTCUSD_20260110
["timestamp","ask_amount","ask_price","bid_price","bid_amount"]
[1768087637597,5.45e-05,90537.0,90525.0,0.01104667]
[1768087637784,5.45e-05,90537.0,90525.0,0.0662796]
[1768087637950,5.45e-05,90537.0,90526.0,0.01104655]
[1768087638277,0.03,90536.0,90526.0,0.01104655]
[1768087640464,0.03,90536.0,90527.0,0.01104642]
[1768087640662,0.03,90536.0,90527.0,0.06627841]
[1768087640893,0.03,90536.0,90527.0,0.01104642]
[1768087641265,0.03,90536.0,90527.0,0.06627852]
[1768087641468,0.04722748,90536.0,90529.0,0.01104618]
[1768087641851,5.45e-05,90537.0,90529.0,0.01104618]
[1768087642435,5.45e-05,90537.0,90528.0,0.0110463]
[1768087642639,5.45e-05,90537.0,90529.0,0.01104618]
[1768087642857,5.45e-05,90537.0,90528.0,0.0110463]
[1768087643063,5.45e-05,90537.0,90529.0,0.01104618]
[1768087643263,5.45e-05,90537.0,90528.0,0.0110463]
[1768087643494,5.45e-05,90537.0,90528.0,0.06627782]
[1768087643803,5.45e-05,90537.0,90529.0,0.01104618]
[1768087644395,5.45e-05,90537.0,90528.0,0.0110463]
[1768087644609,5.45e-05,90537.0,90529.0,0.01104618]
[1768087645186,5.45e-05,90537.0,90528.0,0.06627768]
[1768087645389,5.45e-05,90537.0,90529.0,0.01104618]
[1768087645904,5.45e-05,90537.0,90528.0,0.0110463]
[1768087646271,5.45e-05,90537.0,90528.0,0.06627781]
[1768087646702,5.45e-05,90537.0,90527.0,0.06627849]
[1768087646868,5.45e-05,90537.0,90528.0,0.0110463]
[1768087647272,5.45e-05,90537.0,90527.0,0.09942984]
[1768087647912,5.45e-05,90537.0,90528.0,0.04837534]
[1768087649648,5.45e-05,90537.0,90528.0,0.05942164]
[1768087649816,5.45e-05,90537.0,90527.0,0.0994298]
[1768087650024,5.45e-05,90537.0,90530.0,0.01104606]
[1768087650430,5.45e-05,90537.0,90529.0,0.06627689]
[1768087650617,5.45e-05,90537.0,90528.0,0.0110463]
[1768087651614,5.45e-05,90537.0,90528.0,0.06627746]
[1768087651969,5.45e-05,90537.0,90528.0,0.0110463]
[1768087652388,5.45e-05,90537.0,90527.0,0.0994295]
[1768087652789,5.45e-05,90537.0,90527.0,0.04419777]
[1768087653765,5.45e-05,90537.0,90528.0,0.0110463]
[1768087655092,5.45e-05,90537.0,90527.0,0.09942943]
[1768087655093,0.03,90536.0,90527.0,0.09942943]
[1768087656112,5.45e-05,90537.0,90527.0,0.09942943]
[1768087656724,5.45e-05,90537.0,90527.0,0.03315135]
[1768087656874,5.45e-05,90537.0,90528.0,0.0110463]
[1768087657073,5.45e-05,90537.0,90527.0,0.09942966]
[1768087657383,5.45e-05,90537.0,90528.0,0.0110463]
[1768087657588,5.45e-05,90537.0,90527.0,0.09942966]
[1768087658121,5.45e-05,90537.0,90527.0,0.04419777]
[1768087658492,5.45e-05,90537.0,90527.0,0.09942965]
[1768087659308,5.45e-05,90537.0,90527.0,0.09942985]
[1768087659507,5.45e-05,90537.0,90528.0,0.0110463]
[1768087660469,5.45e-05,90537.0,90527.0,0.04419777]
[1768087660876,5.45e-05,90537.0,90528.0,0.0110463]
[1768087661077,5.45e-05,90537.0,90527.0,0.03315135]
[1768087662142,5.45e-05,90537.0,90528.0,0.0110463]
[1768087662354,5.45e-05,90537.0,90527.0,0.03315135]
[1768087662960,0.03,90536.0,90527.0,0.03315135]
[1768087664721,0.03,90536.0,90528.0,0.0110463]
[1768087664923,0.0215952,90537.0,90527.0,0.03315135]
[1768087664924,5.45e-05,90537.0,90527.0,0.03315135]
[1768087665125,5.45e-05,90537.0,90528.0,0.05523125]
[1768087665503,5.45e-05,90537.0,90530.0,0.01104606]
[1768087665929,5.45e-05,90537.0,90529.0,0.06627698]
[1768087666917,5.45e-05,90537.0,90530.0,0.01104606]
[1768087667339,5.45e-05,90537.0,90530.0,0.06627626]
[1768087667548,5.45e-05,90537.0,90531.0,0.01104594]
[1768087667685,5.45e-05,90537.0,90532.0,0.01104581]
[1768087668291,5e-07,90537.0,90531.0,0.06627531]
[1768087668491,5e-07,90537.0,90532.0,0.01104581]
[1768087669135,5e-07,90537.0,90532.0,0.06627485]
[1768087670260,5e-07,90537.0,90532.0,0.01104581]
[1768087672714,5e-07,90537.0,90531.0,0.01104594]
[1768087673685,5e-07,90537.0,90532.0,0.01104581]
[1768087677535,5e-07,90537.0,90531.0,0.06627544]
[1768087679406,5e-07,90537.0,90536.0,0.00040072]
[1768087695376,5e-07,90537.0,90532.0,0.0662748]
[1768087696884,5e-07,90537.0,90533.0,0.01104569]
[1768087697758,5e-07,90537.0,90532.0,0.0662748]
[1768087698190,5e-07,90537.0,90533.0,0.01104569]
[1768087699273,5e-07,90537.0,90532.0,0.0662748]
[1768087699474,5e-07,90537.0,90533.0,0.01104569]
[1768087700969,5e-07,90537.0,90534.0,0.01104557]
[1768087701177,5e-07,90537.0,90534.0,0.06627343]
[1768087701809,5e-07,90537.0,90535.0,0.0463311]
[1768087703453,5e-07,90537.0,90533.0,0.01104569]
[1768087705372,5e-07,90537.0,90529.0,0.05523062]
[1768087705670,5e-07,90537.0,90531.0,0.01104594]
[1768087706039,5e-07,90537.0,90530.0,0.01104606]
[1768087706478,5e-07,90537.0,90530.0,0.0662763]
[1768087706837,5e-07,90537.0,90530.0,0.01104606]
[1768087708052,5e-07,90537.0,90531.0,0.01104594]
[1768087708877,5e-07,90537.0,90532.0,0.01104581]
[1768087710267,5e-07,90537.0,90532.0,0.06627488]
[1768087710488,5e-07,90537.0,90532.0,0.01104581]
[1768087712605,5e-07,90537.0,90533.0,0.01104569]
[1768087713148,5e-07,90537.0,90532.0,0.01104581]
[1768087715079,5e-07,90537.0,90532.0,0.06627484]
[1768087715450,5e-07,90537.0,90533.0,0.01104569]
[1768087716221,5e-07,90537.0,90533.0,0.06627411]
[1768087716434,0.03,90536.0,90533.0,0.06627411]
[1768087716639,0.03,90536.0,90530.0,0.06627612]
[1768087716899,0.03,90536.0,90531.0,0.06627521]
[1768087717576,0.03,90535.0,90532.0,0.0662748]
[1768087718092,0.03,90535.0,90532.0,0.01104581]
[1768087718793,0.03,90534.0,90533.0,0.01104569]
[1768087719571,5e-07,90537.0,90534.0,0.000945]
[1768087720036,5e-07,90537.0,90533.0,0.01104569]
[1768087720252,5e-07,90537.0,90534.0,0.01104557]
[1768087723766,5e-07,90537.0,90533.0,0.01104569]
[1768087724635,5e-07,90537.0,90534.0,0.01104557]
[1768087726200,5e-07,90537.0,90534.0,0.06627331]
[1768087726442,5e-07,90537.0,90535.0,0.05522716]
[1768087728380,5e-07,90537.0,90535.0,0.05522707]
[1768087730267,5e-07,90537.0,90536.0,0.05522665]
[1768087731046,5e-07,90537.0,90536.0,0.10471387]
[1768087732761,0.01159401,90555.0,90543.0,0.05672812]
[1768087732762,0.0004,90553.0,90543.0,0.05672812]
[1768087733005,1e-06,90551.0,90550.0,0.04568365]
[1768087733156,1e-06,90551.0,90550.0,0.10090176]
[1768087736266,1e-06,90551.0,90550.0,0.04568365]
[1768087737051,1e-06,90551.0,90550.0,0.10090176]
[1768087737366,1e-06,90551.0,90550.0,0.04568365]
[1768087737573,1e-06,90551.0,90550.0,0.04559391]
[1768087742931,1e-06,90551.0,90550.0,0.04514091]
[1768087746442,1e-06,90551.0,90548.0,0.00441915]
[1768087746765,1e-06,90551.0,90544.0,0.02212]
[1768087746766,1e-06,90551.0,90544.0,0.00441934]
[1768087747293,1e-06,90551.0,90543.0,0.02212]
[1768087749873,1e-06,90551.0,90543.0,0.02653946]
[1768087750054,1e-06,90551.0,90543.0,0.03758393]
[1768087750256,1e-06,90551.0,90543.0,0.02653946]
[1768087750598,1e-06,90551.0,90543.0,0.03758393]
[1768087750805,1e-06,90551.0,90543.0,0.02653946]
[1768087751177,1e-06,90551.0,90543.0,0.03758393]
[1768087751379,1e-06,90551.0,90544.0,0.01104435]
[1768087751607,1e-06,90551.0,90543.0,0.02653946]
[1768087752103,1e-06,90551.0,90543.0,0.03758393]
[1768087752873,1e-06,90551.0,90544.0,0.01104435]
[1768087753288,1e-06,90551.0,90545.0,0.01104423]
[1768087753870,1e-06,90551.0,90544.0,0.06626606]
[1768087754921,1e-06,90551.0,90544.0,0.01104435]
[1768087755269,1e-06,90551.0,90545.0,0.01104423]
[1768087758559,1e-06,90551.0,90544.0,0.01104435]
[1768087759160,1e-06,90551.0,90543.0,0.09280604]
[1768087760566,1e-06,90551.0,90544.0,0.01104435]
[1768087760829,1e-06,90551.0,90544.0,0.06626607]
[1768087761181,1e-06,90551.0,90544.0,0.01104435]
[1768087764988,1e-06,90551.0,90543.0,0.02653946]
[1768087765203,1e-06,90551.0,90543.0,0.03758393]
[1768087765957,1e-06,90551.0,90543.0,0.09280626]
[1768087766160,1e-06,90551.0,90544.0,0.01104435]
[1768087766857,1e-06,90551.0,90545.0,0.04518826]
[1768087774981,0.030001,90551.0,90545.0,0.04518826]
[1768087775415,0.0410445,90551.0,90545.0,0.04518826]
[1768087775832,0.030001,90551.0,90545.0,0.04518826]
[1768087775985,0.03,90550.0,90545.0,0.04518826]
[1768087777245,0.03,90549.0,90545.0,0.04518826]
[1768087778606,0.03,90548.0,90545.0,0.04518826]
[1768087778807,0.03,90548.0,90540.0,0.04750859]
[1768087779965,0.03,90547.0,90540.0,0.04750859]
[1768087780182,1e-06,90551.0,90540.0,0.04750859]
[1768087780389,1e-06,90551.0,90540.0,0.05855343]
[1768087781048,1e-06,90551.0,90541.0,0.04750859]
[1768087783351,0.03,90546.0,90536.0,0.00052224]
[1768087783596,0.03,90544.0,90537.0,0.02212]
[1768087784086,0.03,90544.0,90538.0,0.04750859]
[1768087784495,0.03,90543.0,90538.0,0.04750859]
[1768087785505,0.03,90542.0,90538.0,0.04750859]
[1768087786548,0.03,90541.0,90538.0,0.04750859]
[1768087787860,0.03,90540.0,90538.0,0.04750859]
[1768087789487,0.03,90539.0,90538.0,0.04750859]
[1768087791706,0.03,90548.0,90538.0,0.04750859]
[1768087791983,0.07068287,90548.0,90538.0,0.04750859]
[1768087792291,0.08172673,90548.0,90538.0,0.04750859]
[1768087793109,0.07068287,90548.0,90538.0,0.04750859]
[1768087794301,0.08172673,90548.0,90538.0,0.04750859]
[1768087795295,0.03,90546.0,90538.0,0.04735283]
[1768087795518,0.01104423,90545.0,90538.0,0.04735283]
[1768087795643,0.03,90544.0,90538.0,0.04720273]
[1768087795844,0.03,90544.0,90538.0,0.04704134]
[1768087796100,0.03,90544.0,90538.0,0.04672987]
[1768087796654,0.03,90545.0,90538.0,0.04672987]
[1768087798614,0.03,90546.0,90538.0,0.04672987]
[1768087798982,0.04104411,90546.0,90538.0,0.04672987]
[1768087799185,0.03,90544.0,90538.0,0.04672987]
[1768087801801,0.03,90546.0,90538.0,0.04672987]
[1768087802053,0.03,90546.0,90536.0,0.00052224]
[1768087802836,0.03,90545.0,90536.0,0.00052224]
[1768087803037,0.03,90543.0,90536.0,0.00052224]
[1768087807261,0.03,90543.0,90537.0,0.04521133]
[1768087809910,0.03,90543.0,90537.0,0.04489984]
[1768087810118,0.03,90542.0,90537.0,0.04489984]
[1768087810510,0.03,90542.0,90537.0,0.04458837]
[1768087811125,0.03,90541.0,90537.0,0.04458837]
[1768087811327,0.03,90541.0,90537.0,0.04427693]
[1768087812123,0.03,90540.0,90537.0,0.04427693]
[1768087813438,0.03,90539.0,90537.0,0.04427693]
[1768087814489,0.03,90546.0,90536.0,0.00052224]
[1768087814689,0.03,90544.0,90536.0,0.00052224]
[1768087815789,0.03,90543.0,90536.0,0.00052224]
[1768087815989,0.03,90543.0,90536.0,0.00021079]
[1768087816865,0.03,90542.0,90536.0,0.00021079]
[1768087817454,0.03,90542.0,90525.0,0.02212]
[1768087817455,0.03,90535.0,90525.0,0.02212]
[1768087817635,0.03,90533.0,90526.0,0.04521133]
[1768087818704,0.03,90532.0,90526.0,0.04521133]
[1768087819664,0.03,90538.0,90526.0,0.04521133]
[1768087820844,0.03,90537.0,90526.0,0.04521133]
[1768087821841,0.03,90536.0,90526.0,0.04521133]
[1768087822003,0.05553648,90536.0,90526.0,0.04521133]
[1768087822400,0.05553648,90536.0,90527.0,0.01104642]
[1768087822706,0.03,90536.0,90529.0,0.01104618]
[1768087822930,0.02212,90540.0,90528.0,0.06627728]
[1768087822931,0.03,90539.0,90528.0,0.05625763]
[1768087823285,0.03,90539.0,90529.0,0.01104618]
[1768087823903,0.03,90539.0,90528.0,0.04521133]
[1768087824094,0.03,90539.0,90528.0,0.05625763]
[1768087824570,0.03,90539.0,90528.0,0.0110463]
[1768087824571,0.07982268,90539.0,90528.0,0.0110463]
[1768087824713,0.07982268,90539.0,90529.0,0.01104618]
[1768087826731,0.07982268,90539.0,90528.0,0.06627773]
[1768087827343,0.07982268,90539.0,90528.0,0.0110463]
[1768087827563,0.07982268,90539.0,90529.0,0.01104618]
[1768087827758,0.07982268,90539.0,90527.0,0.01104642]
[1768087828393,0.07982268,90539.0,90529.0,0.01104618]
[1768087828550,0.07982268,90539.0,90528.0,0.06627745]
[1768087828921,0.03,90539.0,90528.0,0.11148878]
[1768087829036,0.03,90539.0,90529.0,0.11148822]
[1768087829244,0.03,90539.0,90529.0,0.05625751]
[1768087830750,0.03,90539.0,90529.0,0.04521133]
[1768087833284,0.03,90539.0,90530.0,0.01104606]
[1768087833487,0.03,90539.0,90529.0,0.04521133]
[1768087833712,0.03,90539.0,90529.0,0.05625751]
[1768087835150,0.03,90539.0,90529.0,0.11148822]
[1768087835575,0.03,90539.0,90530.0,0.01104606]
[1768087837371,0.03,90539.0,90529.0,0.11148822]
[1768087837799,0.03,90539.0,90529.0,0.04521133]
[1768087840154,0.03,90539.0,90529.0,0.04514314]
[1768087840556,0.03,90539.0,90529.0,0.05618932]
[1768087842247,0.03,90539.0,90529.0,0.04514314]
[1768087843379,0.03,90539.0,90528.0,0.0110463]
[1768087843578,0.03,90539.0,90528.0,0.01073485]
[1768087843779,0.03,90539.0,90526.0,0.04569141]
[1768087843983,0.03,90539.0,90526.0,0.05673796]
[1768087844137,0.03,90539.0,90528.0,0.05523147]
[1768087844560,0.03,90539.0,90528.0,0.0110463]
[1768087845212,0.03,90539.0,90528.0,0.01073485]
[1768087845443,0.03,90539.0,90529.0,0.01104618]
[1768087846093,0.03,90539.0,90528.0,0.06596632]
[1768087847361,0.03,90539.0,90529.0,0.01104618]
[1768087847556,0.03,90539.0,90528.0,0.01073485]
[1768087847786,0.03,90539.0,90527.0,0.01104642]
[1768087848206,0.03,90539.0,90527.0,0.06627832]
[1768087848378,0.03,90539.0,90528.0,0.0110463]
[1768087848591,0.03,90539.0,90528.0,0.06627782]
[1768087849752,0.03,90539.0,90528.0,0.0110463]
[1768087849950,0.03,90537.0,90528.0,0.0110463]
[1768087851026,0.03,90537.0,90527.0,0.06627828]
[1768087851238,0.03,90537.0,90528.0,0.0110463]
[1768087851645,0.03,90539.0,90528.0,0.0110463]
[1768087851845,0.03,90539.0,90528.0,0.06627772]
[1768087852601,0.03,90539.0,90528.0,0.0662774]
[1768087853285,0.03,90539.0,90528.0,0.0110463]
[1768087854240,0.03,90539.0,90529.0,0.01104618]
[1768087854492,0.03,90539.0,90528.0,0.06052255]
[1768087854702,0.03,90539.0,90529.0,0.11575306]
[1768087854896,0.03,90539.0,90529.0,0.06052243]
[1768087855610,0.03,90539.0,90529.0,0.1157533]
[1768087856154,0.03,90539.0,90529.0,0.06052243]
[1768087856325,0.03,90539.0,90530.0,0.01104606]
[1768087856934,0.03,90539.0,90529.0,0.11575328]
[1768087857133,0.03,90539.0,90529.0,0.06052243]
[1768087857295,0.03,90539.0,90529.0,0.04947625]
[1768087857851,0.03,90539.0,90529.0,0.06052243]
[1768087858294,0.03,90539.0,90529.0,0.1157533]
[1768087860262,0.03,90539.0,90529.0,0.04947625]
[1768087860440,0.03,90539.0,90530.0,0.01104606]
[1768087860871,0.03,90539.0,90529.0,0.06052243]
[1768087861193,0.03,90539.0,90529.0,0.1157529]
[1768087861995,0.03,90539.0,90529.0,0.04947625]
[1768087862696,0.03,90539.0,90530.0,0.05522998]
[1768087862924,0.03,90539.0,90530.0,0.01104606]
[1768087863101,0.03,90539.0,90529.0,0.11575293]
[1768087863549,0.03,90539.0,90529.0,0.06052243]
[1768087863829,0.03,90539.0,90529.0,0.11575311]
[1768087864042,0.03,90539.0,90530.0,0.01104606]
[1768087865504,0.03,90539.0,90531.0,0.01104594]
[1768087865713,0.03,90539.0,90530.0,0.06627598]
[1768087865914,0.03,90539.0,90530.0,0.01104606]
[1768087866377,0.03,90539.0,90529.0,0.11575293]
[1768087866581,0.03,90539.0,90530.0,0.01104606]
[1768087870213,0.03,90533.0,90530.0,0.01104606]
[1768087870384,0.04422556,90532.0,90530.0,0.06627637]
[1768087870594,0.06626396,90547.0,90526.0,0.01104655]
[1768087870595,0.04694513,90543.0,90532.0,0.01]
[1768087870799,0.00052221,90548.0,90544.0,0.04934134]
[1768087871008,0.00052221,90548.0,90544.0,0.04927315]
[1768087871235,0.00052221,90548.0,90544.0,0.0603175]
[1768087871366,0.00052221,90548.0,90544.0,0.04927315]
[1768087872702,0.00052221,90548.0,90544.0,0.04918345]
[1768087883532,0.00052221,90548.0,90544.0,0.04887204]
[1768087884945,0.00052221,90548.0,90544.0,0.05991639]
[1768087885290,0.00052221,90548.0,90544.0,0.04887204]
[1768087885498,0.00052221,90548.0,90544.0,0.05991639]
[1768087885754,0.00052221,90548.0,90544.0,0.04887204]
[1768087885913,0.00052221,90548.0,90544.0,0.05991639]
[1768087886287,0.00052221,90548.0,90544.0,0.04887204]
[1768087886454,0.00052221,90548.0,90544.0,0.04864796]
[1768087886862,0.00052221,90548.0,90544.0,0.05969231]
[1768087887260,0.00052221,90548.0,90544.0,0.04864796]
[1768087887847,0.0188163,90553.0,90545.0,0.01095453]
[1768087888089,0.000551,90555.0,90545.0,0.06022768]
[1768087888312,0.000551,90555.0,90549.0,0.01104374]
[1768087889183,0.000551,90555.0,90548.0,0.06626278]
[1768087889371,0.000551,90555.0,90549.0,0.01104374]
[1768087889554,0.000551,90555.0,90548.0,0.06626278]
[1768087890146,0.000551,90555.0,90550.0,0.01104362]
[1768087890349,0.000551,90555.0,90551.0,0.0110435]
[1768087890550,0.000551,90555.0,90550.0,0.06038496]
[1768087891587,0.000551,90555.0,90550.0,0.06007356]
[1768087891922,0.000551,90555.0,90550.0,0.04934134]
[1768087893290,0.000551,90555.0,90550.0,0.06038496]
[1768087893621,0.000551,90555.0,90550.0,0.04934134]
[1768087893921,0.000551,90555.0,90550.0,0.06038496]
[1768087894076,0.000551,90555.0,90550.0,0.04934134]
[1768087895404,0.000551,90555.0,90550.0,0.06038496]
[1768087895786,0.000551,90555.0,90550.0,0.04934134]
[1768087897310,0.000551,90555.0,90551.0,0.04800833]
[1768087899098,0.000551,90555.0,90549.0,0.01104374]
[1768087900110,0.000551,90555.0,90549.0,0.06626243]
[1768087901551,0.000551,90555.0,90550.0,0.01104362]
[1768087902574,0.000551,90555.0,90549.0,0.06626243]
[1768087903377,0.07877221,90551.0,90550.0,0.01104362]
[1768087903578,0.07877221,90551.0,90550.0,0.01099861]
[1768087904999,0.07877221,90551.0,90550.0,0.06621672]
[1768087905612,0.07877221,90551.0,90550.0,0.06590537]
[1768087905929,0.07877221,90551.0,90550.0,0.06559404]
[1768087906589,0.03,90551.0,90550.0,0.11360237]
[1768087906747,0.000551,90555.0,90550.0,0.11360237]
[1768087906748,0.000551,90555.0,90554.0,0.103224]
[1768087906944,0.01988083,90559.0,90556.0,0.01104289]
[1768087907146,0.0004,90563.0,90558.0,0.01104264]
[1768087907329,0.02143844,90567.0,90559.0,0.00921805]
[1768087907536,0.03,90566.0,90559.0,0.00921805]
[1768087910229,0.03,90566.0,90559.0,0.00917304]
[1768087911573,0.03,90562.0,90555.0,0.01104301]
[1768087911687,0.03,90562.0,90554.0,0.01104313]
[1768087912523,0.03,90561.0,90553.0,0.06625947]
[1768087912744,0.000999,90553.0,90552.0,0.06626026]
[1768087913060,0.07902822,90561.0,90552.0,0.06626026]
[1768087913256,0.03,90561.0,90552.0,0.06626026]
[1768087913439,0.03,90561.0,90554.0,0.01104313]
[1768087913642,0.03,90566.0,90554.0,0.01104313]
[1768087913958,0.03,90566.0,90554.0,0.06625862]
[1768087914161,0.03,90566.0,90555.0,0.01104301]
[1768087914359,0.03,90566.0,90555.0,0.01099801]
[1768087914559,0.03,90566.0,90555.0,0.01104301]
[1768087915005,0.03,90566.0,90554.0,0.06625862]
[1768087915206,0.03,90566.0,90555.0,0.01104301]
[1768087915690,0.03,90566.0,90554.0,0.06625862]
[1768087916352,0.03,90566.0,90554.0,0.06621362]
[1768087917180,0.03,90566.0,90554.0,0.01104313]
[1768087917359,0.03,90566.0,90553.0,0.06625948]
[1768087917564,0.03,90566.0,90552.0,0.06626026]
[1768087917565,0.03,90566.0,90552.0,0.01104337]
[1768087917972,0.04104167,90566.0,90551.0,0.06625997]
[1768087918175,0.04104167,90566.0,90552.0,0.01104337]
[1768087918372,0.000999,90552.0,90550.0,0.04536049]
[1768087918577,0.000999,90552.0,90548.0,0.08838295]
[1768087918981,0.03,90551.0,90548.0,0.03316386]
[1768087919165,0.07902822,90551.0,90548.0,0.02212]
[1768087919797,0.07902822,90551.0,90548.0,0.02180863]
[1768087920205,0.07902822,90551.0,90548.0,0.03285249]
[1768087920596,0.07902822,90551.0,90549.0,0.05521871]
[1768087920798,0.07902822,90551.0,90548.0,0.08807144]
[1768087921821,0.03,90550.0,90549.0,0.01104374]
[1768087922020,0.03,90550.0,90549.0,0.05640423]
[1768087923005,0.03,90563.0,90549.0,0.05640423]
[1768087923210,0.03,90557.0,90549.0,0.01104374]
[1768087923411,0.07902822,90557.0,90549.0,0.01104374]
[1768087923609,0.07569936,90555.0,90549.0,0.01104374]
[1768087926623,0.03,90554.0,90549.0,0.01104374]
[1768087926826,0.03,90554.0,90550.0,0.04862033]
[1768087927445,0.03,90554.0,90551.0,0.04862033]
[1768087927660,0.03,90553.0,90551.0,0.04862033]
[1768087928709,0.03,90562.0,90551.0,0.04862033]
[1768087929852,0.03,90562.0,90551.0,0.04857533]
[1768087930703,0.04104215,90562.0,90551.0,0.04857533]
[1768087930898,0.03,90562.0,90551.0,0.04857533]
[1768087931080,0.04104215,90562.0,90551.0,0.04857533]
[1768087931433,0.03,90562.0,90551.0,0.04857533]
[1768087932617,0.03007397,90562.0,90551.0,0.04857533]
[1768087934610,0.03007397,90562.0,90548.0,0.0880718]
[1768087934812,0.03007397,90562.0,90548.0,0.03285249]
[1768087934813,0.04111612,90562.0,90548.0,0.03285249]
[1768087936015,0.03007397,90562.0,90548.0,0.03285249]
[1768087937966,0.03007397,90562.0,90548.0,0.08807178]
[1768087938146,0.03007397,90562.0,90548.0,0.03285249]
[1768087938473,0.03007397,90562.0,90548.0,0.08147282]
[1768087941153,0.03007397,90562.0,90549.0,0.04862033]
[1768087943571,0.03007397,90562.0,90549.0,0.04857533]
[1768087944730,0.03007397,90562.0,90549.0,0.05961907]
[1768087945221,0.03,90561.0,90550.0,0.01104362]
[1768087945392,0.03,90561.0,90549.0,0.05961907]
[1768087945604,0.03,90561.0,90550.0,0.01104362]
[1768087945970,0.03,90560.0,90550.0,0.01104362]
[1768087946195,0.03,90560.0,90551.0,0.0110435]
[1768087946437,0.03,90560.0,90552.0,0.01104337]
[1768087947290,0.03,90559.0,90551.0,0.0110435]
[1768087947493,0.03,90559.0,90551.0,0.06626082]
[1768087947707,0.03,90559.0,90552.0,0.01104337]
[1768087948337,0.03,90558.0,90552.0,0.01104337]
[1768087949392,7.397e-05,90562.0,90552.0,0.06626023]
[1768087950310,7.397e-05,90562.0,90553.0,0.01104325]
[1768087952418,7.397e-05,90562.0,90554.0,0.05966346]
[1768087953407,0.03007397,90562.0,90554.0,0.11487907]
[1768087953608,0.03007397,90562.0,90555.0,0.01104301]
[1768087953809,0.03007397,90562.0,90554.0,0.11487907]
[1768087954168,0.03007397,90562.0,90555.0,0.01104301]
[1768087954354,7.397e-05,90562.0,90555.0,0.01073163]
[1768087955742,7.397e-05,90562.0,90554.0,0.11487907]
[1768087957127,7.397e-05,90562.0,90555.0,0.06625786]
[1768087957536,7.397e-05,90562.0,90555.0,0.01104301]
[1768087958554,7.397e-05,90562.0,90554.0,0.11487907]
[1768087959789,7.397e-05,90562.0,90555.0,0.01104301]
[1768087960307,7.397e-05,90562.0,90554.0,0.11487907]
[1768087960938,7.397e-05,90562.0,90555.0,0.01104301]
[1768087961136,7.397e-05,90562.0,90554.0,0.11487907]
[1768087962072,7.397e-05,90562.0,90555.0,0.01104301]
[1768087962899,7.397e-05,90562.0,90555.0,0.0097743]
[1768087965319,7.397e-05,90562.0,90555.0,0.01104301]
[1768087967452,7.397e-05,90562.0,90554.0,0.04862033]
[1768087967880,7.397e-05,90562.0,90550.0,0.01104362]
[1768087968016,7.397e-05,90562.0,90551.0,0.0110435]
[1768087968442,7.397e-05,90562.0,90550.0,0.06626164]
[1768087968674,7.397e-05,90562.0,90550.0,0.06595027]
[1768087969021,7.397e-05,90562.0,90551.0,0.0110435]
[1768087969594,0.0485483,90555.0,90551.0,0.0110435]
[1768087969823,0.03,90552.0,90551.0,0.0110435]
[1768087971546,0.03,90552.0,90550.0,0.11210781]
[1768087972038,7.397e-05,90562.0,90550.0,0.11210781]
[1768087972666,7.397e-05,90562.0,90550.0,0.04615754]
[1768087973217,7.397e-05,90562.0,90550.0,0.33919712]
[1768087973424,7.397e-05,90562.0,90550.0,0.33888581]
[1768087973779,7.397e-05,90562.0,90550.0,0.40499183]
[1768087973980,7.397e-05,90562.0,90550.0,0.40468052]
[1768087974285,7.397e-05,90562.0,90551.0,0.0110435]
[1768087974496,7.397e-05,90562.0,90550.0,0.40468026]
[1768087975148,7.397e-05,90562.0,90551.0,0.0110435]
[1768087975351,7.397e-05,90562.0,90550.0,0.40468026]
[1768087978253,7.397e-05,90562.0,90550.0,0.34946247]
[1768087978474,7.397e-05,90562.0,90550.0,0.40468055]
[1768087979122,7.397e-05,90562.0,90550.0,0.34946247]
[1768087982895,7.397e-05,90562.0,90555.0,0.04557615]
[1768087984325,7.397e-05,90562.0,90552.0,0.06626026]
[1768087985339,7.397e-05,90562.0,90553.0,0.01104325]
[1768087988467,7.397e-05,90562.0,90553.0,0.01009781]
[1768087989229,7.397e-05,90562.0,90554.0,0.01104313]
[1768087993405,7.397e-05,90562.0,90554.0,0.0107319]
[1768087997120,7.397e-05,90562.0,90555.0,0.01104301]
[1768087997321,7.397e-05,90562.0,90554.0,0.06594735]
[1768087998483,7.397e-05,90562.0,90554.0,0.0107319]
[1768087999963,7.397e-05,90562.0,90555.0,0.01104301]
[1768088000139,7.397e-05,90562.0,90560.0,0.04714639]
[1768088000321,7.397e-05,90562.0,90559.0,0.01104252]
[1768088000322,0.0004,90570.0,90563.0,0.01104203]
[1768088000523,0.0004,90570.0,90562.0,0.04722036]
[1768088000865,0.0004,90570.0,90562.0,0.04714639]
[1768088002171,0.0004,90570.0,90560.0,0.29303958]
[1768088003057,0.0304,90570.0,90560.0,0.29303958]
[1768088003999,0.0004,90570.0,90560.0,0.29303958]
[1768088007945,0.0004,90570.0,90558.0,0.06625581]
[1768088008153,0.0004,90570.0,90560.0,0.29303958]
[1768088009677,0.0304,90570.0,90560.0,0.29303958]
[1768088009838,0.07995142,90570.0,90560.0,0.29303958]
[1768088010034,0.0304,90570.0,90560.0,0.29303958]
[1768088010602,0.000999,90560.0,90557.0,0.04714639]
[1768088011189,0.03,90568.0,90557.0,0.04714639]
[1768088011776,0.03,90569.0,90557.0,0.04714639]
[1768088015983,0.0304,90570.0,90557.0,0.04714639]
[1768088016592,0.04144118,90570.0,90557.0,0.04714639]
[1768088017423,0.0304,90570.0,90557.0,0.04714639]
[1768088019907,0.0304,90570.0,90557.0,0.05818915]
[1768088019908,0.03,90569.0,90557.0,0.05818915]
[1768088020272,0.03,90569.0,90558.0,0.01104264]
[1768088020591,0.03,90569.0,90557.0,0.05818915]
[1768088020970,0.0004,90570.0,90557.0,0.05818915]
[1768088022556,0.0004,90570.0,90558.0,0.01104264]
[1768088024398,0.0004,90570.0,90557.0,0.11340296]
[1768088024542,0.0004,90570.0,90557.0,0.05818915]
[1768088025496,0.0004,90570.0,90557.0,0.11340295]
[1768088027505,0.0304,90570.0,90558.0,0.06625581]
[1768088027699,0.0304,90570.0,90560.0,0.0110424]
[1768088027900,0.0304,90570.0,90557.0,0.11340283]
[1768088028130,0.0304,90570.0,90560.0,0.29303958]
[1768088028328,0.0304,90570.0,90560.0,0.29272827]
[1768088028693,0.0004,90570.0,90560.0,0.30377067]
[1768088028897,0.0004,90570.0,90560.0,0.29272827]
[1768088031676,0.0004,90570.0,90560.0,0.30377067]
[1768088032574,0.0004,90570.0,90560.0,0.0110424]
[1768088034207,0.0004,90570.0,90561.0,0.01104228]
[1768088035155,0.0004,90570.0,90560.0,0.0110424]